fUSD/lending_fUSD_20250311
["ID","MTS","AMOUNT","RATE_DAILY","PERIOD"]
[355909107,1741710657292,-500.0,8.989e-05,2]
[355909108,1741710657301,-500.0,8.989e-05,2]
[355909109,1741710657312,-500.0,8.989e-05,2]
[355909110,1741710657321,-500.0,8.989e-05,2]
[355909111,1741710657331,-500.0,8.989e-05,2]
[355909112,1741710657340,-500.0,8.989e-05,2]
[355909113,1741710657349,-500.0,8.989e-05,2]
[355909114,1741710657359,-500.0,8.989e-05,2]
[355909115,1741710657368,-500.0,8.989e-05,2]
[355909116,1741710657378,-429.78263794,8.989e-05,2]
[355909117,1741710657387,-500.0,8.989e-05,2]
[355909118,1741710657397,-500.0,8.989e-05,2]
[355909119,1741710657407,-500.0,8.989e-05,2]
[355909120,1741710657417,-1103.27,8.989e-05,2]
[355909121,1741710657426,-2059.67,8.989e-05,2]
[355909122,1741710657436,-2799.4,8.989e-05,2]
[355909123,1741710657446,-500.0,8.989e-05,2]
[355909124,1741710657456,-513.73641955,8.989e-05,2]
[355909125,1741710657465,-500.0,8.989e-05,2]
[355909126,1741710657475,-524.13585581,8.989e-05,2]
[355909127,1741710657484,-500.0,8.989e-05,2]
[355909128,1741710657494,-500.0,8.989e-05,2]
[355909129,1741710657503,-954.87,8.989e-05,2]
[355909130,1741710657512,-350.947452,8.989e-05,2]
[355909131,1741710657521,-1458.39,8.989e-05,2]
[355909132,1741710657531,-350.947452,8.989e-05,2]
[355909133,1741710657540,-500.0,8.989e-05,2]
[355909134,1741710657549,-500.0,8.989e-05,2]
[355909135,1741710657559,-500.0,8.989e-05,2]
[355909136,1741710657569,-350.947452,8.989e-05,2]
[355909137,1741710657578,-350.947452,8.989e-05,2]
[355909138,1741710657588,-636.26,8.989e-05,2]
[355909139,1741710657597,-500.0,8.989e-05,2]
[355909140,1741710657607,-524.61,8.989e-05,2]
[355909141,1741710657616,-500.0,8.989e-05,2]
[355909142,1741710657626,-500.0,8.989e-05,2]
[355909143,1741710657635,-500.0,8.989e-05,2]
[355909144,1741710657644,-500.0,8.989e-05,2]
[355909145,1741710657654,-500.0,8.989e-05,2]
[355909146,1741710657664,-500.0,8.989e-05,2]
[355909147,1741710657673,-663.95,8.989e-05,2]
[355909148,1741710657682,-500.0,8.989e-05,2]
[355909149,1741710657693,-500.0,8.989e-05,2]
[355909150,1741710657702,-624.41,8.989e-05,2]
[355909151,1741710657712,-251.954978,8.989e-05,2]
[355909152,1741710657721,-251.954978,8.989e-05,2]
[355909153,1741710657731,-251.954978,8.989e-05,2]
[355909154,1741710657739,-2008.92,8.989e-05,2]
[355909155,1741710657749,-251.954978,8.989e-05,2]
[355909156,1741710657758,-251.954978,8.989e-05,2]
[355909157,1741710657767,-251.954978,8.989e-05,2]
[355909158,1741710657776,-816.82,8.989e-05,2]
[355909159,1741710657785,-500.0,8.989e-05,2]
[355909160,1741710657795,-654.4,8.989e-05,2]
[355909161,1741710657805,-500.0,8.989e-05,2]
[355909162,1741710657814,-500.0,8.989e-05,2]
[355909163,1741710657823,-1876.55,8.989e-05,2]
[355909164,1741710657833,-821.88,8.989e-05,2]
[355909165,1741710657842,-821.88,8.989e-05,2]
[355909166,1741710657851,-821.88,8.989e-05,2]
[355909167,1741710657861,-821.88,8.989e-05,2]
[355909168,1741710657870,-821.88,8.989e-05,2]
[355909169,1741710657880,-821.88,8.989e-05,2]
[355909170,1741710657889,-821.88,8.989e-05,2]
[355909171,1741710657899,-821.88,8.989e-05,2]
[355909172,1741710657908,-821.88,8.989e-05,2]
[355909173,1741710657918,-821.88,8.989e-05,2]
[355909174,1741710657927,-821.88,8.989e-05,2]
[355909175,1741710657939,-917.97,8.989e-05,2]
[355909176,1741710657948,-821.88,8.989e-05,2]
[355909177,1741710657958,-821.88,8.989e-05,2]
[355909178,1741710657967,-500.0,8.989e-05,2]
[355909179,1741710657977,-821.88,8.989e-05,2]
[355909180,1741710657986,-821.88,8.989e-05,2]
[355909181,1741710657996,-821.88,8.989e-05,2]
[355909182,1741710658005,-151.0,8.989e-05,2]
[355909183,1741710658015,-151.0,8.989e-05,2]
[355909184,1741710658024,-196.875946,8.989e-05,2]
[355909185,1741710658034,-1936.76684,8.989e-05,2]
[355909186,1741710658043,-1936.76684,8.989e-05,2]
[355909187,1741710658053,-1936.76684,8.989e-05,2]
[355909188,1741710658062,-1936.76684,8.989e-05,2]
[355909189,1741710658072,-546.25,8.989e-05,2]
[355909190,1741710658082,-500.0,8.989e-05,2]
[355909191,1741710658095,-1936.76684,8.989e-05,2]
[355909192,1741710658104,-1936.76684,8.989e-05,2]
[355909193,1741710658114,-1936.76684,8.989e-05,2]
[355909194,1741710658123,-1936.76684,8.989e-05,2]
[355909195,1741710658135,-670.06,8.989e-05,2]
[355909196,1741710658145,-650.02,8.989e-05,2]
[355909197,1741710658155,-500.0,8.989e-05,2]
[355909198,1741710658165,-644.75,8.989e-05,2]
[355909199,1741710658176,-500.0,8.989e-05,2]
[355909200,1741710658188,-500.0,8.989e-05,2]
[355909201,1741710658198,-500.0,8.989e-05,2]
[355909202,1741710658208,-500.0,8.989e-05,2]
[355909203,1741710658218,-500.0,8.989e-05,2]
[355909204,1741710658228,-500.0,8.989e-05,2]
[355909205,1741710658238,-805.35,8.989e-05,2]
[355909206,1741710658248,-500.0,8.989e-05,2]
[355909207,1741710658258,-500.0,8.989e-05,2]
[355909208,1741710658268,-500.0,8.989e-05,2]
[355909209,1741710658278,-500.0,8.989e-05,2]
[355909210,1741710658288,-500.0,8.989e-05,2]
[355909211,1741710658298,-500.0,8.989e-05,2]
[355909212,1741710658307,-500.0,8.989e-05,2]
[355909213,1741710658317,-1960.73,8.989e-05,2]
[355909214,1741710658327,-500.0,8.989e-05,2]
[355909215,1741710658338,-500.0,8.989e-05,2]
[355909216,1741710658349,-500.0,8.989e-05,2]
[355909217,1741710658359,-500.0,8.989e-05,2]
[355909218,1741710658370,-500.0,8.989e-05,2]
[355909219,1741710658381,-500.0,8.989e-05,2]
[355909220,1741710658391,-500.0,8.989e-05,2]
[355909221,1741710658400,-1036.96,8.989e-05,2]
[355909222,1741710658410,-875.33,8.989e-05,2]
[355909223,1741710658420,-501.4186116,8.989e-05,2]
[355909224,1741710658431,-638.4,8.989e-05,2]
[355909225,1741710658444,-505.16137076,8.989e-05,2]
[355909226,1741710658453,-374.243546,8.989e-05,2]
[355909227,1741710658463,-374.243546,8.989e-05,2]
[355909228,1741710658472,-500.0,8.989e-05,2]
[355909229,1741710658481,-500.0,8.989e-05,2]
[355909230,1741710658491,-1832.72,8.989e-05,2]
[355909231,1741710658500,-374.243546,8.989e-05,2]
[355909232,1741710658510,-1157.75,8.989e-05,2]
[355909233,1741710658519,-374.243546,8.989e-05,2]
[355909234,1741710658529,-1950.99,8.989e-05,2]
[355909235,1741710658539,-505.52,8.989e-05,2]
[355909236,1741710658548,-535.49,8.989e-05,2]
[355909237,1741710658557,-8082.87,8.989e-05,2]
[355909238,1741710658568,-500.0,8.989e-05,2]
[355909239,1741710658578,-500.0,8.989e-05,2]
[355909240,1741710658588,-500.0,8.989e-05,2]
[355909241,1741710658597,-500.0,8.989e-05,2]
[355909242,1741710658607,-500.0,8.989e-05,2]
[355909243,1741710658617,-2184.75,8.989e-05,2]
[355909244,1741710658627,-500.0,8.989e-05,2]
[355909245,1741710658636,-500.0,8.989e-05,2]
[355909246,1741710658646,-500.0,8.989e-05,2]
[355909247,1741710658656,-500.0,8.989e-05,2]
[355909248,1741710658665,-151.0,8.989e-05,2]
[355909249,1741710658675,-696.9,8.989e-05,2]
[355909250,1741710658684,-290.513564,8.989e-05,2]
[355909251,1741710658698,-1016.32,8.989e-05,2]
[355909252,1741710658708,-558.93,8.989e-05,2]
[355909253,1741710658718,-500.0,8.989e-05,2]
[355909254,1741710658727,-575.72,8.989e-05,2]
[355909255,1741710658737,-500.0,8.989e-05,2]
[355909256,1741710658747,-500.0,8.989e-05,2]
[355909257,1741710658756,-500.0,8.989e-05,2]
[355909258,1741710658765,-500.0,8.989e-05,2]
[355909259,1741710658775,-551.12,8.989e-05,2]
[355909260,1741710658784,-500.0,8.989e-05,2]
[355909261,1741710658794,-563.95,8.989e-05,2]
[355909262,1741710658804,-1059.07,8.989e-05,2]
[355909263,1741710658813,-2373.39,8.989e-05,2]
[355909264,1741710658823,-500.0,8.989e-05,2]
[355909265,1741710658833,-500.0,8.989e-05,2]
[355909266,1741710658843,-500.0,8.989e-05,2]
[355909267,1741710658853,-1756.33,8.989e-05,2]
[355909268,1741710658862,-5353.11,8.989e-05,2]
[355909269,1741710658871,-350.70552801,8.989e-05,2]
[355909270,1741710658881,-500.0,8.989e-05,2]
[355909271,1741710658890,-647.10853042,8.989e-05,2]
[355909272,1741710658900,-500.0,8.989e-05,2]
[355909273,1741710658909,-1363.89,8.989e-05,2]
[355909274,1741710658918,-500.0,8.989e-05,2]
[355909275,1741710658927,-970.68,8.989e-05,2]
[355909276,1741710658939,-500.0,8.989e-05,2]
[355909277,1741710658948,-500.0,8.989e-05,2]
[355909278,1741710658958,-512.55,8.989e-05,2]
[355909279,1741710658968,-500.0,8.989e-05,2]
[355909280,1741710658978,-579.56,8.989e-05,2]
[355909281,1741710658987,-508.00380877,8.989e-05,2]
[355909282,1741710658996,-673.19,8.989e-05,2]
[355909283,1741710659007,-500.0,8.989e-05,2]
[355909284,1741710659017,-500.0,8.989e-05,2]
[355909285,1741710659027,-1690.26,8.989e-05,2]
[355909286,1741710659036,-685.0,8.99e-05,2]
[355909287,1741710659045,-82284.25790556,8.99e-05,2]
[355909288,1741710659072,-443.67495,8.99e-05,2]
[355909289,1741710659089,-2052.91589734,8.99e-05,2]
[355909290,1741710659107,-2547.53,8.99e-05,2]
[355909291,1741710659135,-9562.52941892,8.99e-05,2]
[355909292,1741710659158,-10424.4334155,8.99e-05,2]
[355909293,1741710659171,-3918.15874295,8.99e-05,2]
[355909294,1741710661342,-4150.0,8.99e-05,2]
[355909295,1741710661996,742.09933676,7.993e-05,2]
[355909296,1741710662020,223.40066324,7.993e-05,2]
[355909297,1741710662285,-500.0,8.885e-05,2]
[355909298,1741710662296,-500.0,8.886e-05,2]
[355909299,1741710662306,-4434.96229997,8.99e-05,2]
[355909300,1741710662318,-51794.9999955,8.99e-05,2]
[355909301,1741710662362,-93905.47113392,8.99e-05,2]
[355909302,1741710662401,-2005.05176377,8.99e-05,2]
[355909303,1741710688199,500.0,8.145e-05,2]
[355909304,1741710695621,266.04,8.145e-05,2]
[355909305,1741710695710,266.04,8.166e-05,2]
[355909306,1741710695831,266.04,8.187e-05,2]
[355909307,1741710696047,266.04,8.209e-05,2]
[355909309,1741710696303,266.04,8.23e-05,2]
[355909310,1741710696573,266.04,8.252e-05,2]
[355909311,1741710696818,266.04,8.273e-05,2]
[355909312,1741710697256,266.04,8.294e-05,2]
[355909313,1741710697343,266.04,8.316e-05,2]
[355909314,1741710697516,266.04,8.337e-05,2]
[355909315,1741710697631,266.04,8.359e-05,2]
[355909316,1741710697860,266.04,8.38e-05,2]
[355909317,1741710698084,266.04,8.402e-05,2]
[355909318,1741710698406,266.04,8.423e-05,2]
[355909319,1741710698625,266.04,8.444e-05,2]
[355909320,1741710698854,266.04,8.466e-05,2]
[355909321,1741710699048,266.04,8.487e-05,2]
[355909322,1741710699262,266.04,8.509e-05,2]
[355909323,1741710699516,266.04,8.53e-05,2]
[355909324,1741710699753,266.04,8.552e-05,2]
[355909337,1741710780384,400.0,8.3e-05,3]
[355909338,1741710782848,800.0,8.4e-05,3]
[355909339,1741710784837,1300.0,8.5e-05,3]
[355909340,1741710786887,1455.79933676,8.6e-05,3]
[355909341,1741710786918,244.20066324,8.6e-05,3]
[355909342,1741710788971,2200.0,8.7e-05,3]
[355909344,1741710791110,400.0,8.8e-05,3]
[355909358,1741710904708,2000.0,8.049e-05,2]
[355909363,1741710958036,5155.79933676,8.045e-05,2]
[355909364,1741710958059,6840.19066324,8.045e-05,2]
[355909374,1741711034514,176.77,6.436e-05,2]
[355909375,1741711034736,176.77,8.045e-05,2]
[355909376,1741711046816,360.79,8.145e-05,2]
[355909398,1741711158259,929.0,8.145e-05,2]
[355909406,1741711212886,1500.0,8.219e-05,2]
[355909416,1741711294980,16.47933676,8.219e-05,2]
[355909417,1741711295003,983.52066324,8.219e-05,2]
[355909418,1741711302112,2093.12,8.036e-05,2]
[355909433,1741711362049,166.79,8.262e-05,2]
[355909438,1741711418708,175.77,8.034e-05,2]
[355909439,1741711418864,216.38,8.219e-05,2]
[355909440,1741711432508,848.64,8.034e-05,2]
[355909441,1741711439613,2026.53,8.145e-05,2]
[355909446,1741711513280,1233.95,8.219e-05,2]
[355909448,1741711547334,2255.29933676,8.047e-05,2]
[355909449,1741711547355,10000.0,8.047e-05,2]
[355909450,1741711547377,10000.0,8.047e-05,2]
[355909451,1741711547399,1644.70066324,8.047e-05,2]
[355909479,1741711655931,1722.03,8.047e-05,2]
[355909483,1741711702945,68786.93,8.583e-05,4]
[355909485,1741711706375,892.84,8.047e-05,2]
[355909491,1741711749032,908.7,8.047e-05,2]
[355909521,1741711803954,156.0,8.583e-05,3]
[355909525,1741711832402,-300.0,8.882e-05,2]
[355909526,1741711832411,-150.0,8.883e-05,2]
[355909527,1741711832421,-5.41749892,8.883e-05,2]
[355909528,1741711832512,-559.83250108,8.883e-05,2]
[355909529,1741711832522,-1776.19,8.883e-05,2]
[355909530,1741711832532,-884.91,8.883e-05,2]
[355909531,1741711832541,-3471.57,8.883e-05,2]
[355909532,1741711832551,-3556.26,8.883e-05,2]
[355909533,1741711832560,-1393.65,8.883e-05,2]
[355909534,1741711832570,-722.85,8.883e-05,2]
[355909535,1741711832580,-500.0,8.883e-05,2]
[355909536,1741711832590,-2968.51,8.883e-05,2]
[355909537,1741711832599,-1620.79,8.883e-05,2]
[355909538,1741711832608,-2197.01,8.883e-05,2]
[355909539,1741711832619,-1033.76,8.883e-05,2]
[355909540,1741711832628,-2332.55,8.883e-05,2]
[355909541,1741711832637,-324.59317074,8.883e-05,2]
[355909547,1741711838013,-609.47682926,8.883e-05,2]
[355909548,1741711838023,-1229.54,8.883e-05,2]
[355909549,1741711838033,-658.06,8.883e-05,2]
[355909550,1741711838043,-90.35120074,8.883e-05,2]
[355909551,1741711838054,-1047.65879926,8.883e-05,2]
[355909552,1741711838063,-500.0,8.883e-05,2]
[355909553,1741711838074,-500.0,8.883e-05,2]
[355909554,1741711838085,-2394.74120078,8.883e-05,2]
[355909555,1741711838097,-3911.46879922,8.883e-05,2]
[355909556,1741711838107,-550.0,8.884e-05,2]
[355909557,1741711838117,-500.0,8.884e-05,2]
[355909558,1741711838127,-500.0,8.884e-05,2]
[355909559,1741711838137,-500.0,8.884e-05,2]
[355909560,1741711838146,-500.0,8.884e-05,2]
[355909561,1741711838156,-500.0,8.884e-05,2]
[355909562,1741711838166,-500.0,8.884e-05,2]
[355909563,1741711838175,-500.0,8.884e-05,2]
[355909564,1741711838185,-500.0,8.884e-05,2]
[355909565,1741711838196,-500.0,8.884e-05,2]
[355909566,1741711838205,-2029.11,8.884e-05,2]
[355909567,1741711838214,-500.0,8.884e-05,2]
[355909568,1741711838223,-500.0,8.884e-05,2]
[355909569,1741711838232,-2723.48,8.884e-05,2]
[355909570,1741711838242,-57.07811918,8.884e-05,2]
[355909571,1741711838253,-494.369955,8.884e-05,2]
[355909572,1741711838264,-116.80192582,8.884e-05,2]
[355909573,1741711838273,-151.47862821,8.884e-05,2]
[355909574,1741711838319,-348.52137179,8.884e-05,2]
[355909576,1741711838329,-500.0,8.884e-05,2]
[355909577,1741711838338,-201.47861821,8.884e-05,2]
[355909582,1741711838377,-298.52138179,8.884e-05,2]
[355909584,1741711838386,-591.06761914,8.884e-05,2]
[355909586,1741711838397,-869.38238086,8.884e-05,2]
[355909588,1741711838406,-33.27761914,8.884e-05,2]
[355909615,1741711840215,-466.72238086,8.884e-05,2]
[355909616,1741711840226,-88.13511916,8.884e-05,2]
[355909617,1741711840322,-411.86488084,8.884e-05,2]
[355909618,1741711840332,-21.06761917,8.884e-05,2]
[355909619,1741711840344,-478.93238083,8.884e-05,2]
[355909620,1741711840353,-500.0,8.884e-05,2]
[355909621,1741711840362,-500.0,8.884e-05,2]
[355909622,1741711840371,-517.62,8.884e-05,2]
[355909623,1741711840381,-500.0,8.884e-05,2]
[355909624,1741711840390,-500.0,8.884e-05,2]
[355909625,1741711840399,-500.0,8.884e-05,2]
[355909626,1741711840408,-500.0,8.884e-05,2]
[355909627,1741711840417,-547.44,8.884e-05,2]
[355909628,1741711840427,-500.0,8.884e-05,2]
[355909629,1741711840438,-2364.36,8.884e-05,2]
[355909630,1741711840447,-500.0,8.884e-05,2]
[355909631,1741711840456,-500.0,8.884e-05,2]
[355909632,1741711840466,-500.0,8.884e-05,2]
[355909633,1741711840475,-500.0,8.884e-05,2]
[355909634,1741711840487,-500.0,8.884e-05,2]
[355909635,1741711840499,-500.0,8.884e-05,2]
[355909636,1741711840509,-500.0,8.884e-05,2]
[355909637,1741711840518,-2394.33,8.884e-05,2]
[355909638,1741711840527,-500.0,8.884e-05,2]
[355909639,1741711840538,-853.39,8.884e-05,2]
[355909640,1741711840547,-2126.87,8.884e-05,2]
[355909641,1741711840556,-361.30125713,8.884e-05,2]
[355909642,1741711840566,-500.0,8.884e-05,2]
[355909643,1741711840576,-500.0,8.884e-05,2]
[355909644,1741711840585,-500.0,8.884e-05,2]
[355909645,1741711840595,-792.58,8.884e-05,2]
[355909646,1741711840604,-500.0,8.884e-05,2]
[355909647,1741711840613,-500.0,8.884e-05,2]
[355909648,1741711840623,-500.0,8.884e-05,2]
[355909649,1741711840632,-500.0,8.884e-05,2]
[355909650,1741711840641,-500.0,8.884e-05,2]
[355909651,1741711840650,-500.0,8.884e-05,2]
[355909652,1741711840659,-659.7,8.884e-05,2]
[355909653,1741711840668,-500.0,8.884e-05,2]
[355909654,1741711840677,-508.08674744,8.884e-05,2]
[355909657,1741711841310,-422.3836,8.884e-05,2]
[355909658,1741711841321,-414.07655165,8.884e-05,2]
[355909659,1741711841338,-1465.52306691,8.884e-05,2]
[355909660,1741711841348,-500.0,8.884e-05,2]
[355909661,1741711841357,-563.08,8.884e-05,2]
[355909662,1741711841366,-500.0,8.884e-05,2]
[355909664,1741711841375,-174.747506,8.884e-05,2]
[355909665,1741711841384,-500.0,8.884e-05,2]
[355909666,1741711841393,-500.0,8.884e-05,2]
[355909667,1741711841402,-2244.7,8.884e-05,2]
[355909668,1741711841412,-500.0,8.884e-05,2]
[355909669,1741711841431,-159.519403,8.884e-05,2]
[355909670,1741711841442,-500.0,8.884e-05,2]
[355909671,1741711841451,-500.0,8.884e-05,2]
[355909672,1741711841461,-288.70620408,8.884e-05,2]
[355909673,1741711841474,-482.225,8.884e-05,2]
[355909678,1741711843168,-1944.56,8.883e-05,2]
[355909679,1741711843179,-603.70879592,8.884e-05,2]
[355909680,1741711843192,-2178.95,8.884e-05,2]
[355909681,1741711843202,-500.0,8.884e-05,2]
[355909682,1741711843212,-1398.98,8.884e-05,2]
[355909683,1741711843221,-557.0,8.884e-05,2]
[355909684,1741711843231,-500.0,8.884e-05,2]
[355909685,1741711843240,-500.0,8.884e-05,2]
[355909686,1741711843249,-515.66076477,8.884e-05,2]
[355909687,1741711843259,-500.0,8.884e-05,2]
[355909688,1741711843269,-2279.254204,8.884e-05,2]
[355909689,1741711843278,-773.86,8.884e-05,2]
[355909690,1741711843288,-746.2,8.884e-05,2]
[355909691,1741711843297,-500.0,8.884e-05,2]
[355909692,1741711843307,-1726.48,8.884e-05,2]
[355909693,1741711843317,-1222.71,8.884e-05,2]
[355909694,1741711843327,-500.0,8.884e-05,2]
[355909695,1741711843336,-500.0,8.884e-05,2]
[355909696,1741711843346,-500.0,8.884e-05,2]
[355909697,1741711843356,-1614.26,8.884e-05,2]
[355909698,1741711843365,-500.0,8.884e-05,2]
[355909699,1741711843375,-500.0,8.884e-05,2]
[355909700,1741711843385,-1090.27,8.884e-05,2]
[355909701,1741711843394,-523.08929451,8.884e-05,2]
[355909702,1741711843403,-1277.14,8.884e-05,2]
[355909703,1741711843413,-500.0,8.884e-05,2]
[355909704,1741711843427,-500.0,8.884e-05,2]
[355909705,1741711843437,-541.4235393,8.884e-05,2]
[355909707,1741711843447,-500.0,8.884e-05,2]
[355909708,1741711843457,-500.0,8.884e-05,2]
[355909709,1741711843467,-500.0,8.884e-05,2]
[355909710,1741711843477,-1267.44,8.884e-05,2]
[355909711,1741711843487,-500.0,8.884e-05,2]
[355909712,1741711843499,-500.0,8.884e-05,2]
[355909714,1741711843508,-905.08,8.884e-05,2]
[355909716,1741711843518,-500.0,8.884e-05,2]
[355909718,1741711843528,-500.0,8.884e-05,2]
[355909720,1741711843539,-500.0,8.884e-05,2]
[355909722,1741711843548,-500.0,8.884e-05,2]
[355909724,1741711843558,-500.0,8.884e-05,2]
[355909726,1741711843569,-500.0,8.884e-05,2]
[355909728,1741711843580,-2358.97,8.884e-05,2]
[355909730,1741711843589,-1168.99,8.884e-05,2]
[355909733,1741711843598,-413.48854517,8.884e-05,2]
[355909736,1741711843608,-500.0,8.884e-05,2]
[355909739,1741711843617,-1682.28,8.884e-05,2]
[355909742,1741711843626,-500.0,8.884e-05,2]
[355909745,1741711843635,-652.49,8.884e-05,2]
[355909748,1741711843644,-500.0,8.884e-05,2]
[355909750,1741711843654,-1153.21,8.884e-05,2]
[355909751,1741711843664,-500.0,8.884e-05,2]
[355909752,1741711843674,-1410.97,8.884e-05,2]
[355909753,1741711843683,-717.65,8.884e-05,2]
[355909754,1741711843693,-620.81,8.884e-05,2]
[355909755,1741711843702,-500.0,8.884e-05,2]
[355909756,1741711843712,-500.0,8.884e-05,2]
[355909757,1741711843721,-1111.7,8.884e-05,2]
[355909758,1741711843731,-500.0,8.884e-05,2]
[355909759,1741711843741,-500.0,8.884e-05,2]
[355909760,1741711843751,-500.0,8.884e-05,2]
[355909761,1741711843761,-500.0,8.884e-05,2]
[355909762,1741711843771,-615.72910168,8.884e-05,2]
[355909763,1741711843780,-500.0,8.884e-05,2]
[355909764,1741711843790,-1008.85,8.884e-05,2]
[355909765,1741711843799,-2305.88,8.884e-05,2]
[355909766,1741711843809,-500.0,8.884e-05,2]
[355909767,1741711843818,-500.0,8.884e-05,2]
[355909768,1741711843827,-500.0,8.884e-05,2]
[355909769,1741711843837,-500.0,8.884e-05,2]
[355909770,1741711843846,-1754.66,8.884e-05,2]
[355909771,1741711843855,-500.0,8.884e-05,2]
[355909772,1741711843865,-2250.1,8.884e-05,2]
[355909773,1741711843875,-645.62,8.884e-05,2]
[355909774,1741711843885,-500.0,8.884e-05,2]
[355909775,1741711843894,-500.0,8.884e-05,2]
[355909776,1741711843904,-500.0,8.884e-05,2]
[355909777,1741711843914,-656.05,8.884e-05,2]
[355909778,1741711843923,-500.0,8.884e-05,2]
[355909779,1741711843933,-500.0,8.884e-05,2]
[355909780,1741711843943,-500.0,8.884e-05,2]
[355909781,1741711843953,-919.25,8.884e-05,2]
[355909782,1741711843962,-500.0,8.884e-05,2]
[355909783,1741711843972,-1683.57,8.884e-05,2]
[355909784,1741711843981,-1148.73,8.884e-05,2]
[355909785,1741711843991,-500.0,8.884e-05,2]
[355909786,1741711844000,-500.0,8.884e-05,2]
[355909787,1741711844010,-500.0,8.884e-05,2]
[355909788,1741711844019,-500.0,8.884e-05,2]
[355909789,1741711844028,-1887.47,8.884e-05,2]
[355909790,1741711844038,-646.37,8.884e-05,2]
[355909791,1741711844047,-500.0,8.884e-05,2]
[355909792,1741711844057,-500.0,8.884e-05,2]
[355909793,1741711844066,-500.0,8.884e-05,2]
[355909794,1741711844076,-500.0,8.884e-05,2]
[355909795,1741711844086,-500.0,8.884e-05,2]
[355909796,1741711844095,-500.0,8.884e-05,2]
[355909797,1741711844105,-603.39,8.884e-05,2]
[355909798,1741711844114,-500.0,8.884e-05,2]
[355909799,1741711844124,-357.04988692,8.884e-05,2]
[355909800,1741711844133,-631.82,8.884e-05,2]
[355909801,1741711844143,-500.0,8.884e-05,2]
[355909802,1741711844153,-1186.6,8.884e-05,2]
[355909803,1741711844163,-500.0,8.884e-05,2]
[355909804,1741711844173,-1610.92,8.884e-05,2]
[355909805,1741711844184,-500.0,8.884e-05,2]
[355909806,1741711844194,-500.0,8.884e-05,2]
[355909807,1741711844204,-500.0,8.884e-05,2]
[355909808,1741711844213,-842.06,8.884e-05,2]
[355909809,1741711844223,-500.0,8.884e-05,2]
[355909810,1741711844234,-2063.18,8.884e-05,2]
[355909811,1741711844244,-500.0,8.884e-05,2]
[355909812,1741711844254,-500.0,8.884e-05,2]
[355909813,1741711844264,-500.0,8.884e-05,2]
[355909814,1741711844274,-500.0,8.884e-05,2]
[355909815,1741711844284,-114.60558366,8.884e-05,2]
[355909816,1741711844322,-662.94441634,8.884e-05,2]
[355909817,1741711844332,-500.0,8.884e-05,2]
[355909818,1741711844343,-500.0,8.884e-05,2]
[355909819,1741711844353,-500.0,8.884e-05,2]
[355909820,1741711844363,-1554.14,8.884e-05,2]
[355909821,1741711844373,-500.0,8.884e-05,2]
[355909822,1741711844382,-500.0,8.884e-05,2]
[355909823,1741711844392,-500.0,8.884e-05,2]
[355909824,1741711844401,-500.0,8.884e-05,2]
[355909825,1741711844411,-603.91558391,8.884e-05,2]
[355909826,1741711845919,-1053.85441609,8.884e-05,2]
[355909828,1741711845929,-500.0,8.884e-05,2]
[355909829,1741711845940,-2080.42,8.884e-05,2]
[355909830,1741711845949,-1253.46,8.884e-05,2]
[355909831,1741711845959,-500.0,8.884e-05,2]
[355909832,1741711845968,-962.58,8.884e-05,2]
[355909833,1741711845977,-1197.2065673,8.884e-05,2]
[355909834,1741711846016,-873.7634327,8.884e-05,2]
[355909835,1741711846026,-500.0,8.884e-05,2]
[355909837,1741711846035,-500.0,8.884e-05,2]
[355909838,1741711846045,-500.0,8.884e-05,2]
[355909839,1741711846054,-500.0,8.884e-05,2]
[355909840,1741711846063,-500.0,8.884e-05,2]
[355909841,1741711846073,-500.0,8.884e-05,2]
[355909842,1741711846082,-500.0,8.884e-05,2]
[355909844,1741711846091,-500.0,8.884e-05,2]
[355909846,1741711846100,-1356.29,8.884e-05,2]
[355909848,1741711846110,-681.91,8.884e-05,2]